bitfinex/quotes_ETHUSD_20250219
["timestamp","ask_amount","ask_price","bid_price","bid_amount"]
[1739980130942,3.0,2707.7,2707.0,3.6941]
[1739980131142,6.69318,2707.7,2706.9,0.7501]
[1739980131469,4.47682,2707.5,2706.9,0.7501]
[1739980131624,3.69358,2707.4,2706.9,0.7501]
[1739980131829,0.447688,2707.3,2706.9,0.7501]
[1739980132265,0.7833,2707.5,2706.9,4.44435]
[1739980133632,3.0,2707.7,2707.0,3.69406]
[1739980133832,3.0,2707.7,2706.9,0.7501]
[1739980134026,3.0,2707.7,2707.1,3.69396]
[1739980134435,5.38,2707.8,2707.4,0.792]
[1739980135186,0.8077,2708.5,2707.4,1.60996]
[1739980135336,3.69252,2708.2,2707.6,3.69321]
[1739980135677,3.69238,2708.3,2707.6,3.69321]
[1739980135878,5.22623178,2708.5,2707.6,3.69321]
[1739980136049,6.69233,2708.4,2707.6,3.69321]
[1739980136252,3.6925,2708.2,2707.6,3.69321]
[1739980136556,4.730973,2708.2,2707.6,3.69329]
[1739980136733,5.22626178,2708.5,2707.8,3.69302]
[1739980136933,3.69235,2708.3,2707.7,0.8122]
[1739980137238,3.69249,2708.2,2707.7,0.8122]
[1739980137770,3.69281,2708.0,2707.3,4.52031]
[1739980137977,3.69299,2707.9,2707.4,0.295]
[1739980138275,7.38596,2707.9,2707.4,0.295]
[1739980138457,0.7606,2708.0,2707.4,0.295]
[1739980138458,4.45344,2708.0,2707.4,3.9885]
[1739980138665,0.7606,2708.0,2707.5,3.69341]
[1739980138860,4.45336,2708.0,2707.4,3.98857]
[1739980139065,0.7606,2708.0,2707.4,3.98857]
[1739980139477,4.45341,2708.0,2707.4,0.295]
[1739980139639,3.6929,2707.9,2707.4,0.295]
[1739980139976,4.898781,2708.0,2707.4,0.295]
[1739980140165,1.205941,2708.0,2707.4,0.295]
[1739980140335,3.69289,2707.9,2707.4,0.295]
[1739980140540,3.69312,2707.8,2707.3,0.8266]
[1739980140966,3.69317,2707.7,2707.3,0.8266]
[1739980141182,3.6935,2707.5,2707.0,0.768]
[1739980141338,3.6935,2707.5,2707.0,1.063]
[1739980141539,3.69328,2707.7,2707.1,3.69398]
[1739980141764,2.23848875,2708.0,2707.3,3.69366]
[1739980141966,5.38,2708.3,2707.4,0.768]
[1739980142167,5.38,2708.3,2707.6,0.7878]
[1739980142350,5.38,2708.3,2707.7,3.69317]
[1739980142908,9.07242,2708.3,2707.7,3.69317]
[1739980143192,10.15212907,2708.9,2708.1,3.69252]
[1739980143479,5.38,2709.1,2708.3,7.38461]
[1739980143685,0.63733,2709.0,2708.3,3.69227]
[1739980143853,3.69128,2709.1,2708.5,0.7759]
[1739980144057,0.9933,2709.2,2708.5,0.7759]
[1739980144442,4.68453,2709.2,2708.5,0.7759]
[1739980144660,6.69128,2709.1,2708.5,0.7759]
[1739980144871,3.69147,2709.0,2708.5,0.7759]
[1739980145187,3.69156,2708.9,2708.5,0.7759]
[1739980145369,0.768477,2709.0,2708.5,0.7759]
[1739980145539,4.459967,2709.0,2708.5,0.7759]
[1739980145739,3.69155,2708.9,2708.5,0.7759]
[1739980146175,7.38352,2708.8,2708.5,0.7759]
[1739980146374,0.738352,2708.7,2708.5,0.7759]
[1739980146705,0.738352,2708.7,2708.2,0.295]
[1739980146920,3.69175,2708.8,2708.2,7.67988]
[1739980147080,3.69175,2708.8,2708.2,3.98741]
[1739980147289,4.459947,2709.0,2708.3,3.69234]
[1739980147480,4.459947,2709.0,2708.4,0.8145]
[1739980147697,3.69157,2708.9,2708.4,0.8145]
[1739980148334,3.69165,2708.9,2708.4,0.8145]
[1739980148615,3.69183,2708.7,2708.4,0.8145]
[1739980148973,4.1376627,2708.9,2708.4,0.8145]
[1739980149171,0.4460127,2708.9,2708.4,4.50668]
[1739980149407,0.768477,2709.0,2708.4,4.50668]
[1739980149610,3.69161,2708.9,2708.4,0.8145]
[1739980149910,7.38322,2708.9,2708.4,0.8145]
[1739980150211,3.69187,2708.7,2708.4,0.8145]
[1739980150450,4.44917,2708.7,2708.2,0.779]
[1739980150595,4.136937,2708.6,2708.2,0.779]
[1739980150786,0.444917,2708.6,2708.2,0.779]
[1739980151115,3.6921,2708.5,2708.2,0.779]
[1739980152316,6.148477,2709.0,2708.2,0.7944]
[1739980152613,3.69165,2708.9,2708.2,4.4868]
[1739980152787,3.69167,2708.8,2708.2,0.7944]
[1739980152982,0.9840127,2708.9,2708.2,4.4868]
[1739980153170,4.6756427,2708.9,2708.3,3.69234]
[1739980153369,0.9840127,2708.9,2708.5,0.8229]
[1739980153811,5.38,2709.0,2708.5,4.51486]
[1739980153977,5.38,2709.0,2708.5,4.51489]
[1739980154188,5.38,2709.0,2708.5,0.8229]
[1739980154587,3.69153,2708.9,2708.5,0.8229]
[1739980155124,3.69126,2709.1,2708.2,0.7552]
[1739980155331,3.692,2708.6,2708.2,0.7552]
[1739980155635,3.69176,2708.8,2708.2,4.44761]
[1739980156125,3.69167,2708.9,2708.2,4.44761]
[1739980156332,3.69181,2708.7,2708.2,4.44761]
[1739980158131,3.69181,2708.7,2708.2,4.44765]
[1739980158428,3.69174,2708.8,2708.2,0.7552]
[1739980158597,7.38352,2708.8,2708.3,3.69233]
[1739980158804,3.69187,2708.7,2708.2,0.7552]
[1739980159104,4.4986939,2708.8,2708.2,0.7552]
[1739980159414,3.69214,2708.5,2708.2,0.7552]
[1739980159914,4.4987239,2708.8,2708.2,0.7552]
[1739980160227,3.69182,2708.7,2708.2,0.7552]
[1739980160436,3.69196,2708.6,2708.2,0.7552]
[1739980160729,3.69212,2708.5,2708.2,0.7552]
[1739980161101,7.38402,2708.6,2708.2,0.7552]
[1739980161324,3.69196,2708.6,2708.2,0.7552]
[1739980161524,0.81905439,2708.7,2708.2,0.7552]
[1739980162037,3.69211,2708.5,2708.2,0.7552]
[1739980162239,7.38428,2708.5,2708.2,0.7552]
[1739980162437,3.69211,2708.5,2708.2,0.7552]
[1739980162614,3.69192,2708.7,2708.2,0.7552]
[1739980163146,3.69167,2708.8,2708.3,3.69232]
[1739980163737,3.69153,2708.9,2708.4,3.69215]
[1739980163940,0.686019,2709.0,2708.4,3.69215]
[1739980164241,3.69154,2708.9,2708.4,3.69215]
[1739980164417,3.69154,2708.9,2708.5,0.7607]
[1739980164612,5.38,2709.1,2708.6,3.69187]
[1739980164825,3.69132,2709.1,2708.5,8.1447]
[1739980165146,3.86002,2709.2,2708.5,4.45269]
[1739980165491,3.69139,2709.1,2708.5,4.45269]
[1739980165601,0.1688,2709.2,2708.6,3.69189]
[1739980165803,0.1688,2709.2,2708.7,3.69179]
[1739980166031,3.85995,2709.2,2708.6,3.69189]
[1739980166245,3.6916,2708.9,2708.5,0.7607]
[1739980166604,3.69185,2708.7,2708.5,0.7607]
[1739980167546,3.0,2709.0,2708.5,0.7607]
[1739980168043,3.69142,2709.0,2708.5,4.45277]
[1739980168351,3.69159,2708.9,2708.5,0.7607]
[1739980169258,7.38293,2709.0,2708.5,0.7607]
[1739980169557,3.69142,2709.0,2708.5,0.7607]
[1739980169863,3.69142,2709.0,2708.5,4.45275]
[1739980170158,3.69154,2708.9,2708.5,0.7607]
[1739980170343,3.69175,2708.8,2708.5,0.7607]
[1739980170545,3.69154,2708.9,2708.3,0.7912]
[1739980170546,3.69203,2708.6,2708.3,0.7912]
[1739980170857,3.6918,2708.7,2708.3,0.7912]
[1739980171065,0.7766,2708.9,2708.3,0.7912]
[1739980171367,3.69197,2708.6,2708.3,0.7912]
[1739980171572,3.69209,2708.5,2708.3,0.7912]
[1739980172060,7.38424,2708.5,2708.0,0.806]
[1739980172266,3.69222,2708.4,2708.0,0.806]
[1739980173159,4.76580384,2708.8,2708.0,0.806]
[1739980173358,3.69204,2708.6,2708.0,0.806]
[1739980173561,3.692,2708.6,2708.0,4.49875]
[1739980174118,3.69193,2708.7,2708.1,3.6926]
[1739980174320,3.0,2708.8,2708.2,0.7944]
[1739980174533,3.0,2708.9,2708.3,3.69228]
[1739980174770,6.69159,2708.9,2708.2,0.7944]
[1739980174927,8.01112345,2708.9,2708.2,0.7944]
[1739980175133,3.69181,2708.7,2708.2,0.7944]
[1739980175349,3.69167,2708.8,2708.2,4.48679]
[1739980176058,3.69167,2708.8,2708.3,3.69232]
[1739980176284,3.69182,2708.7,2708.2,0.7944]
[1739980176444,3.69168,2708.8,2708.2,4.48685]
[1739980177462,3.0,2708.9,2708.4,3.69214]
[1739980177663,1.70847844,2709.2,2708.3,3.69223]
[1739980177664,0.1688,2709.2,2708.6,0.8209]
[1739980177864,3.85994,2709.2,2708.6,4.51284]
[1739980178087,0.1688,2709.2,2708.6,4.51284]
[1739980178385,0.1688,2709.2,2708.7,0.480684]
[1739980178528,0.1688,2709.2,2708.8,3.69167]
[1739980178726,0.1688,2709.2,2708.9,0.7786]
[1739980179171,3.85993,2709.2,2708.9,0.7786]
[1739980179341,0.1688,2709.2,2708.9,0.7786]
[1739980179925,0.1688,2709.2,2708.9,4.47006]
[1739980180363,0.1688,2709.2,2708.9,4.22125]
[1739980181169,0.1688,2709.2,2708.9,7.91268]
[1739980181373,0.1688,2709.2,2709.1,3.69126]
[1739980182372,0.1688,2709.2,2709.0,3.69137]
[1739980182537,0.1688,2709.2,2709.0,3.69129]
[1739980183441,0.1688,2709.2,2709.1,0.8278]
[1739980183738,0.1688,2709.2,2708.9,0.8278]
[1739980184280,0.1688,2709.2,2708.9,4.51931]
[1739980184573,0.1688,2709.2,2709.0,3.69138]
[1739980184926,0.1688,2709.2,2708.9,4.5193]
[1739980185948,0.1688,2709.2,2709.0,3.69131]
[1739980186757,0.1688,2709.2,2709.1,3.69126]
[1739980186930,0.1688,2709.2,2709.1,4.44996]
[1739980188361,0.1688,2709.2,2709.1,4.48686899]
[1739980188673,0.1688,2709.2,2709.1,4.44996]
[1739980189161,0.1688,2709.2,2709.1,0.7587]
[1739980191152,0.1688,2709.2,2709.0,0.294]
[1739980191679,0.1688,2709.2,2709.0,3.98539]
[1739980192074,0.1688,2709.2,2709.0,3.98532]
[1739980192276,0.1688,2709.2,2709.1,3.69126]
[1739980192480,0.1688,2709.2,2709.0,3.98532]
[1739980193797,0.1688,2709.2,2709.0,0.294]
[1739980196168,0.1688,2709.2,2709.0,4.832768]
[1739980196574,0.1688,2709.2,2709.0,0.294]
[1739980196772,0.1688,2709.2,2708.9,1.0915]
[1739980197094,0.1688,2709.2,2708.9,0.294]
[1739980197095,3.85999,2709.2,2708.9,0.294]
[1739980198802,3.69133,2709.1,2708.9,0.294]
[1739980198959,0.1688,2709.2,2708.9,0.294]
[1739980199775,3.85993,2709.2,2708.9,0.294]
[1739980199977,4.615022,2709.2,2708.9,0.294]
[1739980200298,0.923892,2709.2,2708.9,0.294]
[1739980200613,8.306242,2709.2,2708.9,0.294]
[1739980201113,0.923892,2709.2,2708.7,0.7544]
[1739980201285,0.7861,2709.0,2708.4,1.0826]
[1739980201489,5.394822,2709.2,2708.4,5.552191]
[1739980201687,0.923892,2709.2,2708.7,3.69168]
[1739980201889,0.1688,2709.2,2708.7,3.69168]
[1739980202418,0.1688,2709.2,2708.9,3.69145]
[1739980202929,0.1688,2709.2,2708.8,0.8246]
[1739980203075,0.1688,2709.2,2709.1,4.46006]
[1739980204422,0.1688,2709.2,2709.1,0.7688]
[1739980204786,0.1688,2709.2,2708.9,3.6915]
[1739980205118,0.1688,2709.2,2708.9,4.44826]
[1739980205320,0.1688,2709.2,2708.9,1.495121]
[1739980205535,0.1688,2709.2,2708.9,0.7568]
[1739980205732,0.1688,2709.2,2708.9,4.44831]
[1739980206307,0.1688,2709.2,2709.1,3.69126]
[1739980206731,0.1688,2709.2,2709.1,9.88146636]
[1739980207025,0.1688,2709.2,2709.1,9.84456]
[1739980207226,0.1688,2709.2,2709.1,14.54455573]
[1739980215148,0.1688,2709.2,2709.1,15.09455573]
[1739980216146,0.1688,2709.2,2709.1,14.54455573]
[1739980217545,0.1688,2709.2,2709.1,15.09455573]
[1739980220478,0.1688,2709.2,2709.1,23.64855573]
[1739980220658,0.1688,2709.2,2709.1,23.35455573]
[1739980220860,0.1688,2709.2,2709.1,23.64855573]
[1739980221875,0.1688,2709.2,2709.1,27.11267301]
[1739980226385,0.1688,2709.2,2709.1,18.30267301]
[1739980229408,0.1688,2709.2,2709.1,12.84456]
[1739980229589,0.1688,2709.2,2709.1,5.36]
[1739980229953,0.1688,2709.2,2708.9,0.294]
[1739980230349,0.7647,2709.1,2708.5,5.36]
[1739980230575,0.7647,2709.1,2708.5,3.69208]
[1739980230790,7.5512,2709.2,2708.4,0.294]
[1739980230791,0.7647,2708.9,2708.4,0.294]
[1739980230989,0.7647,2709.1,2708.5,0.03691539]
[1739980231173,0.1688,2709.2,2708.9,3.69147]
[1739980231365,0.1688,2709.2,2709.1,3.69126]
[1739980232703,0.22849224,2709.2,2709.1,3.69126]
[1739980232871,0.22849224,2709.2,2709.1,4.46643015]
[1739980233240,0.22849224,2709.2,2709.1,8.189324]
[1739980233891,0.22849224,2709.2,2709.0,3.69138]
[1739980234098,0.22849224,2709.2,2708.9,3.69152]
[1739980234325,0.22849224,2709.2,2709.0,0.294]
[1739980235225,0.22849224,2709.2,2708.8,7.38316]
[1739980235426,0.22849224,2709.2,2708.8,3.98558]
[1739980235847,0.22849224,2709.2,2709.1,3.69126]
[1739980238033,0.22849224,2709.2,2709.1,12.81866]
[1739980238713,2.24e-06,2709.2,2709.1,12.81866]
[1739980240609,2.24e-06,2709.2,2709.1,13.57400899]
[1739980241339,2.24e-06,2709.2,2709.1,22.38400899]
[1739980241543,2.24e-06,2709.2,2709.1,25.33795362]
[1739980244304,2.24e-06,2709.2,2709.1,21.10920463]
[1739980245006,2.24e-06,2709.2,2709.1,24.10920463]
[1739980245535,2.24e-06,2709.2,2709.1,24.92650463]
[1739980247110,2.24e-06,2709.2,2709.1,16.11650463]
[1739980248840,2.24e-06,2709.2,2709.1,16.18450463]
[1739980255165,2.24e-06,2709.2,2709.1,25.54450463]
[1739980255455,2.24e-06,2709.2,2709.1,29.00862191]
[1739980255828,9.99,2710.0,2709.9,7.49007]
[1739980256031,9.99,2710.0,2709.9,17.35619428]
[1739980258077,9.99,2710.0,2709.9,17.63079375]
[1739980258285,0.60434,2710.0,2709.9,17.63079375]
[1739980258483,0.0139,2710.2,2710.1,7.4931]
[1739980258766,1e-05,2710.2,2710.1,11.41148437]
[1739980258953,1e-05,2710.2,2710.1,25.58148437]
[1739980260344,1e-05,2710.2,2710.1,25.03148437]
[1739980262060,1e-05,2710.2,2710.1,25.68148437]
[1739980262265,1e-05,2710.2,2710.1,25.58148437]
[1739980263804,1e-05,2710.2,2710.1,25.68148437]
[1739980264005,0.8302,2711.4,2711.3,3.68826]
[1739980264311,0.8302,2711.4,2711.3,3.98126]
[1739980264760,0.8302,2711.4,2711.3,0.293]
[1739980265096,0.8302,2711.4,2711.2,5.36]
[1739980265306,1.260225,2711.3,2711.2,5.36]
[1739980266204,4.948485,2711.3,2711.2,5.36]
[1739980266586,4.948485,2711.3,2711.2,4.899375]
[1739980267455,0.8117,2711.0,2710.2,4.26685942]
[1739980267681,0.8117,2710.3,2710.2,4.26685942]
[1739980268080,1.261819,2710.3,2709.8,4.899375]
[1739980268387,0.8002,2710.2,2709.8,4.899375]
[1739980269288,0.8002,2710.2,2709.8,8.589655]
[1739980269962,0.8002,2710.2,2709.9,3.6901]
[1739980270580,0.8002,2710.2,2709.8,8.589595]
[1739980270785,0.8002,2710.2,2709.9,0.03689752]
[1739980270990,0.8002,2710.2,2709.9,3.69017]
[1739980271198,0.8002,2710.2,2710.1,3.6899]
[1739980271380,0.7703,2711.0,2710.1,3.68978]
[1739980271567,0.7507,2710.8,2710.1,3.68978]
[1739980271893,0.7507,2710.8,2710.5,3.68934]
[1739980272500,0.8248,2711.2,2710.6,3.98221]
[1739980273004,0.8248,2711.2,2710.8,3.68894]
[1739980273996,3.6886,2711.1,2710.6,5.192375]
[1739980274176,4.47406,2710.8,2710.6,4.899375]
[1739980274495,1.601396,2710.8,2710.6,4.899375]
[1739980275379,0.7851,2710.8,2710.6,4.899375]
[1739980275600,4.47411,2710.8,2710.6,4.899375]
[1739980276092,4.45648,2710.7,2710.6,4.899375]
[1739980276998,0.7674,2710.7,2710.3,0.293]
[1739980277356,4.45651,2710.7,2710.3,0.293]
[1739980277673,5.271062,2710.7,2710.3,0.293]
[1739980277866,1.581952,2710.7,2710.3,0.293]
[1739980278170,5.271052,2710.7,2710.3,0.293]
[1739980278432,1.581952,2710.7,2710.3,0.293]
[1739980279102,0.7674,2710.7,2710.3,3.98256]
[1739980279393,0.8107,2711.1,2710.5,3.68933]
[1739980279961,3.68888,2710.9,2710.3,0.293]
[1739980280158,0.7745,2710.8,2710.1,3.68989]
[1739980280364,3.68917,2710.7,2710.2,0.293]
[1739980280594,0.81525,2710.7,2710.2,0.293]
[1739980280794,5.93,2711.2,2710.1,0.293]
[1739980280795,3.6895,2710.4,2710.1,0.293]
[1739980280994,0.793,2710.3,2710.1,0.293]
[1739980285373,3.68976,2710.2,2709.7,3.69037]
[1739980285595,3.68976,2710.2,2709.8,0.293]
[1739980286101,0.7647,2710.1,2709.6,4.899375]
[1739980286306,0.7593,2709.5,2709.3,4.899375]
[1739980286482,0.7593,2709.5,2709.1,4.967375]
[1739980289680,0.7811,2709.2,2709.1,0.068]
[1739980290002,1.22831,2709.2,2709.1,0.068]
[1739980290320,0.7811,2709.2,2709.1,0.068]
[1739980290669,10.38057,2709.9,2709.1,0.068]
[1739980290978,0.8167,2709.8,2709.1,0.068]
[1739980291172,5.93,2710.0,2709.1,0.068]
[1739980291173,0.8167,2709.5,2709.1,0.068]
[1739980291372,1.636479,2709.5,2709.1,0.068]
[1739980291595,3.69092,2709.4,2709.1,0.068]
[1739980291773,4.49999,2709.3,2709.1,0.068]
[1739980292314,0.8089,2709.3,2709.1,0.068]
[1739980293029,4.49991,2709.3,2709.1,0.068]
[1739980293196,0.449991,2709.2,2709.1,0.068]
[1739980294189,4.909811,2709.2,2709.1,0.068]
[1739980294629,1.218691,2709.2,2709.1,0.068]
[1739980294981,0.7687,2709.2,2709.1,0.068]
[1739980296073,5.38,2709.7,2709.1,3.75925]
[1739980296275,6.2012,2709.7,2709.2,3.72795628]
[1739980296578,0.8212,2709.7,2709.3,0.293]
[1739980297389,4.51164,2709.7,2709.3,0.293]
[1739980297691,1.641405,2709.7,2709.3,0.293]
[1739980297886,0.8212,2709.7,2709.3,3.98387]
[1739980298187,0.7767,2709.9,2709.6,3.69052]
[1739980298386,0.7767,2709.9,2709.3,1.1111]
[1739980298580,0.7767,2709.9,2709.3,3.9839]
[1739980298820,0.7767,2709.9,2709.5,3.69069]
[1739980299019,0.7767,2709.9,2709.4,3.69075]
[1739980299184,0.7767,2709.9,2709.4,4.15843746]
[1739980299385,0.7767,2709.9,2709.5,3.69061]
[1739980299602,0.7767,2709.9,2709.6,3.69056]
[1739980299905,0.7767,2709.9,2709.6,3.69051]
[1739980300291,0.7845,2710.3,2709.7,7.38072]
[1739980300491,0.7845,2710.3,2709.7,6.47123712]
[1739980300824,0.7845,2710.3,2709.8,3.6902]
[1739980301485,0.7845,2710.3,2709.9,3.69016]
[1739980301689,0.7845,2710.3,2710.0,3.68996]
[1739980302545,0.7579,2710.7,2710.1,3.68986]
[1739980302855,3.68928,2710.6,2710.1,1.030982]
[1739980303028,4.44698,2710.7,2710.1,4.720872]
[1739980303232,3.68922,2710.6,2710.1,3.98289]
[1739980303549,0.7579,2710.7,2710.1,3.98289]
[1739980303835,0.7579,2710.7,2710.2,0.03689358]
[1739980304405,0.7579,2710.7,2710.1,0.293]
[1739980304721,0.7579,2710.7,2710.1,3.98289]
[1739980305028,0.7579,2710.7,2710.2,3.72662359]
[1739980305221,0.7579,2710.7,2710.1,3.98289]
[1739980305614,3.68922,2710.6,2710.1,3.98289]
[1739980305816,0.7579,2710.7,2710.2,3.72657359]
[1739980306001,0.7579,2710.7,2710.3,3.68952]
[1739980306329,0.7579,2710.7,2710.2,8.13683]
[1739980306711,0.7579,2710.7,2710.1,5.959677]
[1739980306712,4.44705,2710.7,2710.1,5.959677]
[1739980307036,3.68931,2710.6,2710.1,5.192375]
[1739980308034,3.68864,2711.1,2709.1,0.8359]
[1739980308035,0.8065,2710.2,2709.1,0.8359]
[1739980308206,3.69025,2709.9,2709.2,8.590425]
[1739980308442,3.69006,2710.0,2709.3,3.69085]
[1739980308914,3.69017,2709.9,2709.2,8.590425]
[1739980309224,3.69072,2709.5,2709.2,4.899375]
[1739980309551,4.50532,2709.2,2709.1,0.068]
[1739980310329,4.52032,2709.2,2709.1,0.068]
[1739980310969,8.07032,2709.2,2709.1,0.068]
[1739980312929,8.25980611,2709.2,2709.1,0.068]
[1739980313719,9.94803354,2709.2,2709.1,0.068]
[1739980314731,15.42803354,2709.2,2709.1,0.068]
[1739980315833,15.32803354,2709.2,2709.1,0.068]
[1739980316274,0.8092,2709.0,2707.9,0.57840961]
[1739980316441,3.69258,2708.2,2707.9,0.57840961]
[1739980316862,3.69258,2708.2,2707.5,5.975175]
[1739980317172,3.69258,2708.2,2707.5,8.35697058]
[1739980317340,3.69256,2708.2,2707.5,8.35697058]
[1739980317541,3.69274,2708.1,2707.5,7.7784595]
[1739980317745,3.69285,2708.0,2707.5,7.7784595]
[1739980318071,3.69284,2708.0,2707.5,5.682175]
[1739980318451,4.47515,2708.3,2707.5,5.682175]
[1739980319035,3.69249,2708.2,2707.5,5.682175]
[1739980319438,3.69267,2708.1,2707.5,5.682175]
[1739980320090,3.6925,2708.2,2707.5,5.682175]
[1739980320252,4.509274,2708.2,2707.5,5.682175]
[1739980320452,3.69277,2708.0,2707.5,5.682175]
[1739980321062,4.509274,2708.2,2707.5,5.682175]
[1739980321464,4.509274,2708.2,2707.5,0.7828]
[1739980321887,3.69278,2708.0,2707.5,0.7828]
[1739980322407,4.509274,2708.2,2707.5,0.7828]
[1739980322694,0.816774,2708.2,2707.5,0.7828]
[1739980322993,0.04062038,2708.1,2707.5,2.63691784]
[1739980323307,4.52269,2707.9,2707.4,0.5785234]
[1739980323468,3.69317,2707.7,2707.1,4.899375]
[1739980323683,3.69396,2707.2,2706.7,0.87169302]
[1739980323883,3.69396,2707.2,2706.7,0.57869302]
[1739980324078,3.69386,2707.2,2706.7,0.57869302]
[1739980324700,3.69366,2707.4,2706.7,0.57869302]
[1739980324883,3.69378,2707.3,2706.7,0.57869302]
[1739980325200,3.69386,2707.2,2706.7,0.57869302]
[1739980326008,0.446956,2707.4,2706.7,0.57869302]
[1739980326185,3.69373,2707.3,2706.7,0.57869302]
[1739980326388,3.69373,2707.3,2706.7,1.11256832]
[1739980326597,3.6936,2707.4,2706.7,4.80702832]
[1739980326762,3.69356,2707.5,2706.7,8.50144832]
[1739980326967,3.69356,2707.5,2706.8,3.69439]
[1739980327169,7.38709,2707.5,2706.7,4.80698832]
[1739980327383,1.05435908,2707.6,2706.8,0.55793883]
[1739980327384,3.69386,2707.2,2706.8,0.55793883]
[1739980327687,1.05435908,2707.6,2706.7,0.57869302]
[1739980327907,3.69352,2707.5,2706.7,4.27320302]
[1739980328088,3.69364,2707.4,2706.7,4.27320302]
[1739980328300,3.69352,2707.5,2706.7,4.27320302]
[1739980328516,3.69366,2707.4,2706.7,4.27320302]
[1739980328699,3.69372,2707.3,2706.7,5.17653332]
[1739980328983,3.69352,2707.5,2706.7,5.17653332]
[1739980329179,7.74775908,2707.6,2706.7,5.17653332]
[1739980329384,6.1405,2707.9,2706.8,3.73123935]
[1739980329629,3.69342,2707.6,2706.9,0.52132627]
[1739980329797,3.69342,2707.6,2706.9,4.21545627]
[1739980329997,3.69342,2707.6,2707.0,0.7737]
[1739980330196,3.69327,2707.7,2707.0,0.7737]
[1739980330397,4.30711,2707.8,2707.0,4.46769]
[1739980330600,3.69331,2707.6,2707.0,1.76253913]
[1739980331113,3.69345,2707.5,2707.0,1.76253913]
[1739980331318,3.69326,2707.7,2707.0,5.45657913]
[1739980331823,0.04062038,2708.1,2707.3,3.69359]
[1739980332118,3.69308,2707.8,2707.4,0.293]
[1739980332278,0.04062038,2708.1,2707.4,0.293]
[1739980332485,3.69305,2707.8,2707.4,0.293]
[1739980332682,3.69289,2707.9,2707.4,0.293]
[1739980333484,0.04062038,2708.1,2707.4,0.293]
[1739980333818,3.69277,2708.0,2707.4,4.5818375]
[1739980334006,3.69277,2708.0,2707.4,0.8883375]
[1739980334317,3.69303,2707.9,2707.4,0.8883375]
[1739980334725,3.69289,2707.9,2707.4,0.293]
[1739980334926,0.04062038,2708.1,2707.4,3.98656]
[1739980335127,0.04062038,2708.1,2707.5,3.73036055]
[1739980335334,3.73331038,2708.1,2707.4,3.98657]
[1739980335629,3.69278,2708.0,2707.4,3.98657]
[1739980335826,0.04062038,2708.1,2707.6,3.69327]
[1739980335993,0.04062038,2708.1,2707.7,0.8312]
[1739980336193,0.04062038,2708.1,2707.7,4.52434]
[1739980336729,0.04062038,2708.1,2707.7,4.5243]
[1739980337036,0.04062038,2708.1,2707.7,0.8312]
[1739980337230,0.04062038,2708.1,2707.8,4.2660775]
[1739980337433,0.04062038,2708.1,2707.8,0.5730575]
[1739980338040,0.04062038,2708.1,2707.8,4.2660775]
[1739980338628,0.04062038,2708.1,2707.8,0.5730575]
[1739980339624,0.04062038,2708.1,2707.8,0.8660575]
[1739980341137,0.04062038,2708.1,2707.8,0.293]
[1739980341428,0.04062038,2708.1,2707.7,3.69308]
[1739980342214,3.73330038,2708.1,2707.5,3.69334]
[1739980342940,3.73326038,2708.1,2707.5,3.69334]
[1739980343240,3.69284,2708.0,2707.4,4.0803]
[1739980343402,3.69309,2707.8,2707.4,1.0803]
[1739980344203,3.69317,2707.7,2707.3,4.899375]
[1739980345037,8.21682,2707.9,2707.3,8.593085]
[1739980345204,0.83462038,2708.1,2707.5,3.69338]
[1739980345536,4.52734038,2708.1,2707.5,3.69338]
[1739980345743,3.69278,2708.0,2707.5,3.69338]
[1739980345947,4.52734038,2708.1,2707.5,3.69338]
[1739980346242,0.04062038,2708.1,2707.7,4.45385]
[1739980346622,0.04062038,2708.1,2707.8,3.693]
[1739980347007,0.04062038,2708.1,2707.9,3.69289]
[1739980347208,0.04062038,2708.1,2708.0,4.51516]
[1739980347530,0.04062038,2708.1,2708.0,6.15582362]
[1739980347707,0.04062038,2708.1,2708.0,6.1189025]
[1739980348343,0.04062038,2708.1,2708.0,6.15582432]
[1739980348524,0.04062038,2708.1,2708.0,6.1189025]
[1739980349919,0.04062038,2708.1,2708.0,6.15582289]
[1739980350116,0.04062038,2708.1,2708.0,6.1189025]
[1739980351212,0.04062038,2708.1,2708.0,11.0182775]
[1739980357668,0.04062038,2708.1,2708.0,19.8282775]
[1739980357884,0.04062038,2708.1,2708.0,22.8282775]
[1739980358230,0.04062038,2708.1,2708.0,23.3782775]
[1739980359077,0.04062038,2708.1,2708.0,22.8282775]
[1739980361147,0.04062038,2708.1,2708.0,19.8282775]
[1739980361306,0.04062038,2708.1,2708.0,18.517535]
[1739980361490,0.04062038,2708.1,2708.0,9.707535]
[1739980361856,0.04062038,2708.1,2708.0,4.899375]
[1739980362503,0.04062038,2708.1,2707.7,9.420235]
[1739980362705,0.04062038,2708.1,2707.8,0.292]
[1739980362912,0.04062038,2708.1,2707.8,3.98501]
[1739980363204,0.04062038,2708.1,2707.8,3.69303]
[1739980363513,0.04062038,2708.1,2707.8,3.69294]
[1739980363814,0.04062038,2708.1,2708.0,3.69276]
[1739980364103,0.04062038,2708.1,2707.8,3.69294]
[1739980364307,0.04062038,2708.1,2707.9,3.69289]
[1739980364876,0.04062038,2708.1,2708.0,3.69276]
[1739980365218,0.04062038,2708.1,2707.9,3.69289]
[1739980365510,0.04062038,2708.1,2708.0,3.69276]
[1739980365810,0.04062038,2708.1,2708.0,4.431319]
[1739980365964,0.04062038,2708.1,2708.0,9.330694]
[1739980366164,0.04062038,2708.1,2708.0,8.592135]
[1739980366364,0.04062038,2708.1,2708.0,4.899375]